Workbook

Sheet Лист1
B2: x | C2: 4x^2-ln(x/2) | L2: аналитически -4ln(4)+3ln(2)+87 | M2: интеграл | N2: Относительная погрешность
B3: 1 | C3: =4*B3^2-LN(B3/2) -> 4.693147181 | M3: =-4*LN(4)+3*LN(2)+87 -> 83.5342641 | N3: к аналит знач. | O3: к предыдущему
B4: =$B$3+(ROW(B4)-ROW($B$3))*($B$19-$B$3)/16 -> 1.1875 | C4: =4*B4^2-LN(B4/2) -> 6.161921924 | L4: Симпсон 1 отрезок | M4: =(B19-B3)/3*(C3+C19) -> 68 | N4: =ABS(($M$3-M4)/$M$3) -> 0.1859627814 | O4: -
B5: =$B$3+(ROW(B5)-ROW($B$3))*($B$19-$B$3)/16 -> 1.375 | C5: 7.937193449 | L5: Симпсон 2 отрезка | M5: =(B19-B3)/2/3*(C3+4*C11+C19) -> 83.5537129 | N5: =ABS(($M$3-M5)/$M$3) -> 0.0002328242235 | O5: =ABS((M5-M4)/M5) -> 0.1861522649
B6: 1.5625 | C6: 10.01248508 | L6: Симпсон 4 отрезка | M6: =(B19-B3)/4/3*(C3+4*C7+2*C11+4*C15+C19) -> 83.5364518 | N6: =ABS(($M$3-M6)/$M$3) -> 2.618930099e-05 | O6: =ABS((M6-M5)/M6) -> 0.000206629511
B7: 1.75 | C7: 12.38353139 | L7: Симпсон 8 отрезков | M7: =(B19-B3)/8/3*(C3+4*SUM(C5,C9,C13,C17)+2*SUM(C7,C11,C15)+C19) -> 83.53444812 | N7: 2.202955617e-06 | O7: =ABS((M7-M6)/M7) -> 2.398629253e-05
B8: 1.9375 | C8: 15.0473737 | L8: Симпсон 16 отрезков | M8: =(B19-B3)/16/3*(C3+4*SUM(C4,C6,C8,C10,C12,C14,C16,C18)+2*SUM(C5,C7,C9,C11,C13,C15,C17)+C19) -> 83.53427699 | N8: 1.543530731e-07 | O8: =ABS((M8-M7)/M8) -> 2.048602228e-06
B9: 2.125 | C9: 18.00187538
B10: 2.3125 | C10: 21.24544299
B11: 2.5 | C11: 24.77685645
B12: 2.6875 | C12: 28.59516079
B13: 2.875 | C13: 32.69959451
B14: 3.0625 | C14: 37.0895406
B15: 3.25 | C15: 41.76449218
B16: 3.4375 | C16: 46.72402772
B17: 3.625 | C17: 51.96779289
B18: 3.8125 | C18: 57.49548704
B19: 4 | C19: 63.30685282
L20: Интегралы онлайн
